Workbook

Sheet CSV
A1: Stations | B1: 7 | C1: Chines | D1: 4
A2: Station | B2: Chine | C2: X | D2: Y | E2: Z | F2: Break | G2: Colour
A3: 1 | B3: 1 | C3: 20 | D3: 0.2362305418 | E3: 146.9465575 | F3: TRUE | G3: 1
A4: 1 | B4: 2 | C4: 20 | D4: 0.2362305418 | E4: 146.9465575 | F4: TRUE | G4: 2
A5: 1 | B5: 3 | C5: 20 | D5: 0.2362305418 | E5: 146.9465575 | F5: TRUE | G5: 3
A6: 1 | B6: 4 | C6: 20 | D6: 0.2362305418 | E6: 146.9465575 | F6: TRUE | G6: 4
A7: 2 | B7: 1 | C7: 135 | D7: 0.2362305418 | E7: 0 | F7: TRUE | G7: 1
A8: 2 | B8: 2 | C8: 135 | D8: 0.2362305418 | E8: 0 | F8: TRUE | G8: 2
A9: 3 | B9: 1 | C9: 604 | D9: 0.2362305418 | E9: -48.36215816 | F9: FALSE | G9: 1
A10: 3 | B10: 2 | C10: 604 | D10: 132.0658934 | E10: -24.18107908 | F10: FALSE | G10: 2
A11: 3 | B11: 3 | C11: 604 | D11: 157.177014 | E11: 106.0247314 | F11: FALSE | G11: 3
A12: 3 | B12: 4 | C12: 604 | D12: 0 | E12: 144.156433 | F12: FALSE | G12: 4
A13: 4 | B13: 1 | C13: 1200 | D13: 0 | E13: -69.75311273 | F13: FALSE | G13: 1
A14: 4 | B14: 2 | C14: 1200 | D14: 184.1482176 | E14: -45.57203365 | F14: FALSE | G14: 2
A15: 4 | B15: 3 | C15: 1200 | D15: 208.3292967 | E15: 92.07410881 | F15: FALSE | G15: 3
A16: 4 | B16: 4 | C16: 1200 | D16: 0 | E16: 142.29635 | F16: FALSE | G16: 4
A17: 5 | B17: 1 | C17: 1777 | D17: 0 | E17: -51.15228267 | F17: FALSE | G17: 1
A18: 5 | B18: 2 | C18: 1777 | D18: 132.0658934 | E18: -26.97120359 | F18: FALSE | G18: 2
A19: 5 | B19: 3 | C19: 1777 | D19: 157.177014 | E19: 92.07410881 | F19: FALSE | G19: 3
A20: 5 | B20: 4 | C20: 1777 | D20: 0 | E20: 112.5350219 | F20: FALSE | G20: 4
A21: 6 | B21: 1 | C21: 2332 | D21: 0 | E21: 0 | F21: TRUE | G21: 1
A22: 6 | B22: 2 | C22: 2332 | D22: 0 | E22: 0 | F22: TRUE | G22: 2
A23: 7 | B23: 1 | C23: 2364 | D23: 0 | E23: 92.07410881 | F23: TRUE | G23: 0
A24: 7 | B24: 2 | C24: 2364 | D24: 0 | E24: 92.07410881 | F24: TRUE | G24: 0
A25: 7 | B25: 3 | C25: 2364 | D25: 0 | E25: 92.07410881 | F25: TRUE | G25: 0
A26: 7 | B26: 4 | C26: 2364 | D26: 0 | E26: 92.07410881 | F26: TRUE | G26: 0

Sheet Mini-Kayak
A1: Mini-Kayak
A2: Find Offet Table at row | B2: 17 | M2: Mini-Kayak Basic Design Statistics
A3: Stations | B3: 7 | M3: Length Overall (LOA) | Q3: =(AF17-B17)/1000 -> 2.344 | R3: m
A4: Chines | B4: 4 | M4: Beam Overall (BOA) | Q4: =R18/500 -> 0.4166585934 | R4: m
M5: Length Water Line (LWL) | Q5: =(AA19-G19)/1000 -> 2.197 | R5: m
M6: Beam Water Line (BWL) | Q6: =M19/500 -> 0.2641317869 | R6: m | S6: Actually the bottom width
M7: Depth Water Line (DWL) | Q7: =-S20/1000 -> 0.06975311273 | R7: m
M8: Rocker | Q8: =(I20-S20)/1000 -> 0.06975311273 | R8: m
M9: Amidships Deadrise | Q9: =DEGREES(ATAN2(R19-R20,S19-S20)) -> 7.48088618 | R9: Degrees
M10: Amidships Freeboard | Q10: =S17/1000 -> 0.14229635 | R10: m
A11: This design is based on work by: | M11: Forward Freeboard | Q11: =I17/1000 -> 0 | R11: m
A12: Bruce C. Anderson | M12: Rear Freeboard | Q12: =X17/1000 -> 0.1125350219 | R12: m
A13: http://buckwheat-anderson.com/bcanderson/Boatz/OSKayak/OSKbuild.html
A15: Station | B15: 1 | G15: 2 | L15: 3 | Q15: 4 | V15: 5 | AA15: 6 | AF15: 7
A16: Chine | B16: X | C16: Y | D16: Z | E16: Break | F16: Colour | G16: X | H16: Y | I16: Z | J16: Break | K16: Colour | L16: X | M16: Y | N16: Z | O16: Break | P16: Colour | Q16: X | R16: Y | S16: Z | T16: Break | U16: Colour | V16: X | W16: Y | X16: Z | Y16: Break | Z16: Colour | AA16: X | AB16: Y | AC16: Z | AD16: Break | AE16: Colour | AF16: X | AG16: Y | AH16: Z | AI16: Break | AJ16: Colour
A17: Deck | B17: 20 | C17: 0.2362305418 | D17: 146.9465575 | E17: TRUE | F17: 3.791469194 | L17: 604 | M17: 0 | N17: 144.156433 | O17: FALSE | P17: 3.791469194 | Q17: 1200 | R17: 0 | S17: 142.29635 | T17: FALSE | U17: 3.791469194 | V17: 1777 | W17: 0 | X17: 112.5350219 | Y17: FALSE | Z17: 3.791469194 | AF17: 2364 | AG17: 0 | AH17: 92.07410881 | AI17: TRUE | AJ17: 0
A18: Sheer | B18: 20 | C18: 0.2362305418 | D18: 146.9465575 | E18: TRUE | F18: 2.843601896 | L18: 604 | M18: 157.177014 | N18: 106.0247314 | O18: FALSE | P18: 2.843601896 | Q18: 1200 | R18: 208.3292967 | S18: 92.07410881 | T18: FALSE | U18: 2.843601896 | V18: 1777 | W18: 157.177014 | X18: 92.07410881 | Y18: FALSE | Z18: 2.843601896 | AF18: 2364 | AG18: 0 | AH18: 92.07410881 | AI18: TRUE | AJ18: 0
A19: Chine | B19: 20 | C19: 0.2362305418 | D19: 146.9465575 | E19: TRUE | F19: 1.895734597 | G19: 135 | H19: 0.2362305418 | I19: 0 | J19: TRUE | K19: 1.895734597 | L19: 604 | M19: 132.0658934 | N19: -24.18107908 | O19: FALSE | P19: 1.895734597 | Q19: 1200 | R19: 184.1482176 | S19: -45.57203365 | T19: FALSE | U19: 1.895734597 | V19: 1777 | W19: 132.0658934 | X19: -26.97120359 | Y19: FALSE | Z19: 1.895734597 | AA19: 2332 | AB19: 0 | AC19: 0 | AD19: TRUE | AE19: 1.895734597 | AF19: 2364 | AG19: 0 | AH19: 92.07410881 | AI19: TRUE | AJ19: 0
A20: Centreline | B20: 20 | C20: 0.2362305418 | D20: 146.9465575 | E20: TRUE | F20: 0.9478672986 | G20: 135 | H20: 0.2362305418 | I20: 0 | J20: TRUE | K20: 0.9478672986 | L20: 604 | M20: 0.2362305418 | N20: -48.36215816 | O20: FALSE | P20: 0.9478672986 | Q20: 1200 | R20: 0 | S20: -69.75311273 | T20: FALSE | U20: 0.9478672986 | V20: 1777 | W20: 0 | X20: -51.15228267 | Y20: FALSE | Z20: 0.9478672986 | AA20: 2332 | AB20: 0 | AC20: 0 | AD20: TRUE | AE20: 0.9478672986 | AF20: 2364 | AG20: 0 | AH20: 92.07410881 | AI20: TRUE | AJ20: 0

Sheet Mini-Kayak Basic Calcs
B2: Mini-Kayak Basic Metrics
B3: Length Overall (LOA) | C3: ='Mini-Kayak'!Q3 -> 2.344 | D3: m
B4: Beam Overall (BOA) | C4: ='Mini-Kayak'!Q4 -> 0.4166585934 | D4: m
B5: Length Water Line (LWL) | C5: ='Mini-Kayak'!Q5 -> 2.197 | D5: m
B6: Beam Water Line (BWL) | C6: ='Mini-Kayak'!Q6 -> 0.2641317869 | D6: m | E6: Actually the bottom width
B7: Depth Water Line (DWL) | C7: ='Mini-Kayak'!Q7 -> 0.06975311273 | D7: m
B8: Rocker | C8: ='Mini-Kayak'!Q8 -> 0.06975311273 | D8: m
B9: Amidships Deadrise | C9: ='Mini-Kayak'!Q9 -> 7.48088618 | D9: Degrees
B10: Amidships Freeboard | C10: ='Mini-Kayak'!Q10 -> 0.14229635 | D10: m
B11: Forward Freeboard | C11: ='Mini-Kayak'!Q11 -> 0 | D11: m
B12: Rear Freeboard | C12: ='Mini-Kayak'!Q12 -> 0.1125350219 | D12: m
B14: Basic Calculations (approximate)
B15: Mid-Section Area | C15: =C6*C7 -> 0.01842401431 | D15: m^2
B16: Plan Water Line Area | C16: =C6*C5*2/3 -> 0.3868650239 | D16: m^2
B17: Displacement Volume | C17: =C5*C6*(C7-C8/3)*2/3 -> 0.01799002641 | D17: m^3
B18: Displacement Weight | C18: =C17*1025 -> 18.43977707 | D18: kg
B19: Prismatic Coefficient (cp) | C19: =C17/(C5*C6*C7) -> 0.4444444444
B20: Displacement Length Ratio (DLR) | C20: =C18/(C3/3.048)^3 -> 40.54410635
B21: Hull Speed | C21: =1.34*(C5*3.28)^0.5 -> 3.597135096 | D21: kt
B22: Design G Force | C22: 3.5 | D22: g
B23: Design Pressure | C23: =C22*C18*9.81/1000/C16 -> 1.636564969 | D23: kPa
B25: Bottom Plank Design
B26: Design Pressure (P) | C26: =C23 -> 1.636564969 | D26: kPa
B27: Span (L) | C27: =C6*1000 -> 264.1317869 | D27: mm | E27: BWL
B28: Allowable Stress (S) | C28: 14000 | D28: kPa | E28: F14 Plywood
B29: Plank Thickness (t) | C29: =(C26*C27*C27/C28/2)^0.5 -> 2.019334565 | D29: mm | E29: t^2=P*L^2/2/S, ~fixed sides
B30: Design Plank Thickness (t) | C30: 4 | D30: mm
B31: Modulus of Elasticity (E) | C31: =10500000*80% -> 8400000 | D31: kPa | E31: Factored 80% for wet condition
B32: Moment of Inertia (I) | C32: =1000*C30^3/12 -> 5333.333333 | D32: mm^4
B33: Deflection (d) | C33: =C26*C27^4/384/C31/C32*1000 -> 0.4630273986 | D33: mm | E33: d=P*L^4/384EI (2% max)
B34: Deflection Ratio | C34: =C27/C33 -> 570.4452645
B35: Maximum Concentrated Load | C35: =C28*C30*C30/1000000 -> 0.224 | D35: kN | E35: =S*t*t
B38: Hull Centre Reinforcement
B39: T-Section Modulus
B40: Maximum Rib Spacing (Flange Width) | C40: =36*C42+C43 -> 224 | D40: mm | E40: Fw<36t+w
B41: Design Rib Spacing | C41: 200 | D41: mm
B42: Plank Thickness (Flange Thickness) | C42: =C30 -> 4 | D42: mm
B43: Rib Width (Web Thickness) | C43: 80 | D43: mm
B44: Rib Thickness (Web Height) | C44: 4 | D44: mm
B45: A | C45: =C40*C42+C44*C43 -> 1216 | D45: mm^2
B46: cy | C46: =(C40*C42*C42/2+C44*C43*(C42+C44/2))/(C40*C42+C44*C43) -> 3.052631579 | D46: mm | E46: From top of T
B47: cx | C47: =(C40*C42*0/2+C44*C43*0/2)/(C40*C42+C44*C43) -> 0 | D47: mm | E47: From centre line of T
B48: Ixx | C48: =C41*C42^3/12+C41*C42*(C46-C42/2)^2+C43*C44^3/12+C43*C44*(C46-C42-C44/2)^2 -> 5159.593721 | D48: mm^4
B49: Iyy | C49: =C40*C40*C40*C42/12+C43*C43*C43*C44/12 -> 3917141.333 | D49: mm^4
B50: Design Point Load | C50: 1 | D50: kN | E50: ~100kg
B51: Span | C51: =C27 -> 264.1317869 | D51: mm
B52: Allowable Stress | C52: =C28 -> 14000 | D52: kPa | E52: F14 Plywood
B53: Bending Moment | C53: =C50*C51/8 -> 33.01647336 | D53: Nm
B54: Section Modulus | C54: =C48/C46 -> 1690.211736 | D54: mm^3
B55: Working Stress (per rib) | C55: =C53/C54*1000000 -> 19533.92741 | D55: kN
B56: Distribute Load (over two ribs) | C56: =C55/2 -> 9766.963704 | D56: kN
B57: Safety Factor | C57: =C52/C56 -> 1.433403504
B58: Note: May be easier to either double plank thickness or reinforce with one layers of 4 oz/sq_yd fibre-glass on both sides
B60: Side Plank Design
B61: Design Pressure (P) | C61: =C23 -> 1.636564969 | D61: kPa
B62: Span (L) | C62: =(C10+C7)*1000 -> 212.0494627 | D62: mm
B63: Allowable Stress (S) | C63: =C28 -> 14000 | D63: kPa | E63: F14 Plywood
B64: Plank Thickness (t) | C64: =(C61*C62*C62/C63/2)^0.5 -> 1.621155918 | D64: mm | E64: t^2=P*L^2/2/S, ~fixed sides
B65: Design Plank Thickness (t) | C65: =C44 -> 4 | D65: mm | E65: Okay
B67: Plywood Fibre Glass Joins
B68: Spw | C68: =C28 -> 14000 | D68: Pa
B69: h | C69: =C30 -> 4 | D69: mm
B70: M | C70: =C68*C69^2/6 -> 37333.33333 | D70: Nm | E70: M=Spw*b*h^2/6
B71: Sfg | C71: 120000000 | D71: Pa
B72: t | C72: =1000*((C70*6*C69/C71+C69*C69*C69)^(1/3)-C69)/2 -> 0.07777475328 | D72: mm | E72: t~((6*M*h/Sfg/b+h^3)^(1/3)-h)/2
B73: F/G Weight | C73: =C72*16 -> 1.244396053 | D73: oz/sq_yd | E73: Each side of plywood
B74: F/G Overlap (each side of join) | C74: =C69*3 -> 12 | D74: mm | E74: =3*h [JS = 15%*(1+L/h)]

Sheet Hearts Desire II (hidden)
A1: Heart's Desire II
A2: Find Offet Table at row | B2: 21 | H2: Basic Metrics
A3: Stations | B3: 24 | H3: Length Overall (LOA) | L3: =(DM27-B27)/1000 -> 6.993169652 | M3: m
A4: Chines | B4: 12 | H4: Beam Overall (BOA) | L4: =BK28/500 -> 2.273698363 | M4: m
H5: Length Water Line (LWL) | L5: =(DC30-DE30*(DC30-CX30)/(DE30-CZ30)-Q30-S30*(Q30-L30)/(S30-N30))/1000 -> 6.17842573 | M5: m
A6: Cabin Slope Pivot X | B6: 544.488 | C6: mm | H6: Beam Water Line (BWL) | L6: =TREND(BK28:BK29,BL28:BL29,0)/500 -> 2.029676549 | M6: m
A7: Cabin Slope Pivot Y | B7: =0.0000182672053*B6^2 - 0.165450041*B6 + 1022.13715+$B$9 -> 987.467215 | C7: mm | H7: Max Chine Length (CL) | L7: =B34/1000 -> 0.8972446077 | M7: m
A8: Cabin Slope | B8: 3 | C8: degrees | H8: Depth Water Line (DWL) | L8: =-CP32/1000 -> 0.7163322729 | M8: m
A9: Deck Lift | B9: 50 | C9: mm | H9: Amidships Freeboard | L9: =BL28/1000 -> 0.6668352714 | M9: m
A10: Cabin Lift | B10: 100 | C10: mm | H10: Forward Freeboard | L10: =D27/1000 -> 1.02213715 | M10: m
A11: Cockpit Depth | B11: 280 | C11: mm | H11: Rear Freeboard | L11: =DO27/1000 -> 0.7584640571 | M11: m
A13: This design is an interpretation of William Atkin boat "Heart's Desire II", please have a look at the link below:
A14: http://www.atkinboatplans.com/Sail/HeartsDesireII.html
A15: The author has purchased the plans and this work is his adaption of the design to "stitch and glue" plywood construction.
A16: It you like the design then a lot a good karma can be purchased by buying the plans from Pat Atkin (APatkin@aol.com) for US$100 including postage.
A17: Note: The current design has development faults (i.e. excessive curvature).
A19: Station | B19: 1 | G19: 2 | L19: 3 | Q19: 4 | V19: 5 | AA19: 6 | AF19: 7 | AK19: 8 | AP19: 9 | AU19: 10 | AZ19: 11 | BE19: 12 | BJ19: 13 | BO19: 14 | BT19: 15 | BY19: 16 | CD19: 17 | CI19: 18 | CN19: 19 | CS19: 20 | CX19: 21 | DC19: 22 | DH19: 23 | DM19: 24
A20: Chine | B20: X | C20: Y | D20: Z | E20: BREAK | F20: COLOUR | G20: X | H20: Y | I20: Z | J20: BREAK | K20: COLOUR | L20: X | M20: Y | N20: Z | O20: BREAK | P20: COLOUR | Q20: X | R20: Y | S20: Z | T20: BREAK | U20: COLOUR | V20: X | W20: Y | X20: Z | Y20: BREAK | Z20: COLOUR | AA20: X | AB20: Y | AC20: Z | AD20: BREAK | AE20: COLOUR | AF20: X | AG20: Y | AH20: Z | AI20: BREAK | AJ20: COLOUR | AK20: X | AL20: Y | AM20: Z | AN20: BREAK | AO20: COLOUR | AP20: X | AQ20: Y | AR20: Z | AS20: BREAK | AT20: COLOUR | AU20: X | AV20: Y | AW20: Z | AX20: BREAK | AY20: COLOUR | AZ20: X | BA20: Y | BB20: Z | BC20: BREAK | BD20: COLOUR | BE20: X | BF20: Y | BG20: Z | BH20: BREAK | BI20: COLOUR | BJ20: X | BK20: Y | BL20: Z | BM20: BREAK | BN20: COLOUR | BO20: X | BP20: Y | BQ20: Z | BR20: BREAK | BS20: COLOUR | BT20: X | BU20: Y | BV20: Z | BW20: BREAK | BX20: COLOUR | BY20: X | BZ20: Y | CA20: Z | CB20: BREAK | CC20: COLOUR | CD20: X | CE20: Y | CF20: Z | CG20: BREAK | CH20: COLOUR | CI20: X | CJ20: Y | CK20: Z | CL20: BREAK | CM20: COLOUR | CN20: X | CO20: Y | CP20: Z | CQ20: BREAK | CR20: COLOUR | CS20: X | CT20: Y | CU20: Z | CV20: BREAK | CW20: COLOUR | CX20: X | CY20: Y | CZ20: Z | DA20: BREAK | DB20: COLOUR | DC20: X | DD20: Y | DE20: Z | DF20: BREAK | DG20: COLOUR | DH20: X | DI20: Y | DJ20: Z | DK20: BREAK | DL20: COLOUR | DM20: X | DN20: Y | DO20: Z | DP20: BREAK | DQ20: COLOUR
A21: Top Centre Line | B21: 0 | C21: =-0.0000000000067919258*B21^4 + 0.0000000945983196*B21^3 - 0.000504025587*B21^2 + 1.22127801*B21 -> 0 | D21: =0.0000182672053*B21^2 - 0.165450041*B21 + 1022.13715 -> 1022.13715 | E21: TRUE | F21: 0 | AA21: 2625 | AB21: 0 | AC21: =$B$7+TAN(RADIANS($B$8))*(AA21-$B$6)+$B$10 -> 1196.502229 | AD21: TRUE | AE21: 1 | BE21: 3000 | BF21: 0 | BG21: =$B$7+TAN(RADIANS($B$8))*(BE21-$B$6)+$B$10 -> 1216.155146 | BH21: FALSE | BI21: 1 | BJ21: 3500 | BK21: 0 | BL21: =$B$7+TAN(RADIANS($B$8))*(BJ21-$B$6)+$B$10 -> 1242.359036 | BM21: FALSE | BN21: 1 | BO21: 4000 | BP21: 0 | BQ21: =$B$7+TAN(RADIANS($B$8))*(BO21-$B$6)+$B$10 -> 1268.562925 | BR21: FALSE | BS21: 1 | CD21: 4552 | CE21: 0 | CF21: =$B$7+TAN(RADIANS($B$8))*(CD21-$B$6)+$B$10 -> 1297.492019 | CG21: TRUE | CH21: 0 | CI21: 4800 | CJ21: 0 | CK21: =0.0000182672053*CI21^2 - 0.165450041*CI21 + 1022.13715+$B$9-$B$11 -> 418.8533633 | CL21: TRUE | CM21: 1 | CS21: 5500 | CT21: 0 | CU21: =0.0000182672053*CS21^2 - 0.165450041*CS21 + 1022.13715+$B$9-$B$11 -> 434.7448848 | CV21: FALSE | CW21: 1 | DC21: 5950 | DD21: 0 | DE21: =0.0000182672053*DC21^2 - 0.165450041*DC21 + 1022.13715+$B$9-$B$11 -> 454.4141417 | DF21: TRUE | DG21: 0 | DM21: 6993.169652 | DN21: =-0.0000000000067919258*DM21^4 + 0.0000000945983196*DM21^3 - 0.000504025587*DM21^2 + 1.22127801*DM21 -> 4.415978765e-07 | DO21: =0.0000182672053*DM21^2 - 0.165450041*DM21 + 1022.13715 -> 758.4640571 | DP21: TRUE | DQ21: 0
A22: Coach House Top | B22: 0 | C22: 0 | D22: 1022.13715 | E22: TRUE | F22: 0 | AA22: 2625 | AB22: 0 | AC22: =$B$7+TAN(RADIANS($B$8))*(AA22-$B$6)+$B$10 -> 1196.502229 | AD22: TRUE | AE22: 2 | AF22: 2626 | AG22: =-0.0000000000067919258*AF22^4 + 0.0000000945983196*AF22^3 - 0.000504025587*AF22^2 + 1.22127801*AF22-400-200 -> 521.4412672 | AH22: =$B$7+TAN(RADIANS($B$8))*(AF22-$B$6)+$B$10 -> 1196.554636 | AI22: TRUE | AJ22: 2 | AZ22: 2825 | BA22: =-0.0000000000067919258*AZ22^4 + 0.0000000945983196*AZ22^3 - 0.000504025587*AZ22^2 + 1.22127801*AZ22-400-200 -> 527.8351172 | BB22: =$B$7+TAN(RADIANS($B$8))*(AZ22-$B$6)+$B$10 -> 1206.983785 | BC22: TRUE | BD22: 2 | BE22: 3000 | BF22: =-0.0000000000067919258*BE22^4 + 0.0000000945983196*BE22^3 - 0.000504025587*BE22^2 + 1.22127801*BE22-400-200 -> 531.6123864 | BG22: =$B$7+TAN(RADIANS($B$8))*(BE22-$B$6)+$B$10 -> 1216.155146 | BH22: FALSE | BI22: 2 | BJ22: 3500 | BK22: =-0.0000000000067919258*BJ22^4 + 0.0000000945983196*BJ22^3 - 0.000504025587*BJ22^2 + 1.22127801*BJ22-400-200 -> 536.8491817 | BL22: =$B$7+TAN(RADIANS($B$8))*(BJ22-$B$6)+$B$10 -> 1242.359036 | BM22: FALSE | BN22: 2 | BO22: 4000 | BP22: =-0.0000000000067919258*BO22^4 + 0.0000000945983196*BO22^3 - 0.000504025587*BO22^2 + 1.22127801*BO22-400-200 -> 536.2620976 | BQ22: =$B$7+TAN(RADIANS($B$8))*(BO22-$B$6)+$B$10 -> 1268.562925 | BR22: FALSE | BS22: 2 | BT22: 4550 | BU22: =-0.0000000000067919258*BT22^4 + 0.0000000945983196*BT22^3 - 0.000504025587*BT22^2 + 1.22127801*BT22-400-200 -> 522.0687252 | BV22: =$B$7+TAN(RADIANS($B$8))*(BT22-$B$6)+$B$10 -> 1297.387204 | BW22: TRUE | BX22: 2 | BY22: 4551 | BZ22: =-0.0000000000067919258*BY22^4 + 0.0000000945983196*BY22^3 - 0.000504025587*BY22^2 + 1.22127801*BY22-400-200 -> 522.0194799 | CA22: =$B$7+TAN(RADIANS($B$8))*(BY22-$B$6)+$B$10 -> 1297.439612 | CB22: TRUE | CC22: 2 | CD22: 4552 | CE22: =CE21 -> 0 | CF22: =$B$7+TAN(RADIANS($B$8))*(CD22-$B$6)+$B$10 -> 1297.492019 | CG22: TRUE | CH22: 0 | CI22: 4800 | CJ22: 0 | CK22: =0.0000182672053*CI22^2 - 0.165450041*CI22 + 1022.13715+$B$9-$B$11 -> 418.8533633 | CL22: TRUE | CM22: 2 | CN22: 4801 | CO22: 310 | CP22: =0.0000182672053*CN22^2 - 0.165450041*CN22 + 1022.13715+$B$9-$B$11 -> 418.8632967 | CQ22: TRUE | CR22: 2 | CS22: 5500 | CT22: =(CY22-CO22)/(CX22-CN22)*(CS22-CN22)+CO22 -> 221.7116725 | CU22: =0.0000182672053*CS22^2 - 0.165450041*CS22 + 1022.13715+$B$9-$B$11 -> 434.7448848 | CV22: FALSE | CW22: 2 | CX22: 5949 | CY22: 165 | CZ22: =0.0000182672053*CX22^2 - 0.165450041*CX22 + 1022.13715+$B$9-$B$11 -> 454.3622302 | DA22: TRUE | DB22: 2 | DC22: 5950 | DD22: 0 | DE22: =0.0000182672053*DC22^2 - 0.165450041*DC22 + 1022.13715+$B$9-$B$11 -> 454.4141417 | DF22: TRUE | DG22: 0 | DM22: 6993.169652 | DN22: 4.415978765e-07 | DO22: 758.4640571 | DP22: TRUE | DQ22: 0
A23: Coach House Top Edge | B23: 0 | C23: =-0.0000000000067919258*B23^4 + 0.0000000945983196*B23^3 - 0.000504025587*B23^2 + 1.22127801*B23 -> 0 | D23: =0.0000182672053*B23^2 - 0.165450041*B23 + 1022.13715 -> 1022.13715 | E23: TRUE | F23: 0 | AF23: 2626 | AG23: =-0.0000000000067919258*AF23^4 + 0.0000000945983196*AF23^3 - 0.000504025587*AF23^2 + 1.22127801*AF23-400-200 -> 521.4412672 | AH23: =$B$7+TAN(RADIANS($B$8))*(AF23-$B$6)+$B$10 -> 1196.554636 | AI23: TRUE | AJ23: 4 | AK23: 2652 | AL23: =-0.0000000000067919258*AK23^4 + 0.0000000945983196*AK23^3 - 0.000504025587*AK23^2 + 1.22127801*AK23-400-100 -> 622.433507 | AM23: =$B$7+TAN(RADIANS($B$8))*(AK23-$B$6)+$B$10*0.5 -> 1147.917239 | AN23: TRUE | AO23: 4 | AP23: 2725 | AQ23: =-0.0000000000067919258*AP23^4 + 0.0000000945983196*AP23^3 - 0.000504025587*AP23^2 + 1.22127801*AP23-400-27 -> 697.9521613 | AR23: =$B$7+TAN(RADIANS($B$8))*(AP23-$B$6)+$B$10*0.134 -> 1115.143007 | AS23: TRUE | AT23: 4 | AZ23: 2825 | BA23: =-0.0000000000067919258*AZ23^4 + 0.0000000945983196*AZ23^3 - 0.000504025587*AZ23^2 + 1.22127801*AZ23-400.5 -> 727.3351172 | BB23: =$B$7+TAN(RADIANS($B$8))*(AZ23-$B$6) -> 1106.983785 | BC23: TRUE | BD23: 4 | BE23: 3000 | BF23: =-0.0000000000067919258*BE23^4 + 0.0000000945983196*BE23^3 - 0.000504025587*BE23^2 + 1.22127801*BE23-400.5 -> 731.1123864 | BG23: =$B$7+TAN(RADIANS($B$8))*(BE23-$B$6) -> 1116.155146 | BH23: FALSE | BI23: 4 | BJ23: 3500 | BK23: =-0.0000000000067919258*BJ23^4 + 0.0000000945983196*BJ23^3 - 0.000504025587*BJ23^2 + 1.22127801*BJ23-400.5 -> 736.3491817 | BL23: =$B$7+TAN(RADIANS($B$8))*(BJ23-$B$6) -> 1142.359036 | BM23: FALSE | BN23: 4 | BO23: 4000 | BP23: =-0.0000000000067919258*BO23^4 + 0.0000000945983196*BO23^3 - 0.000504025587*BO23^2 + 1.22127801*BO23-400.5 -> 735.7620976 | BQ23: =$B$7+TAN(RADIANS($B$8))*(BO23-$B$6) -> 1168.562925 | BR23: FALSE | BS23: 4 | BT23: 4550 | BU23: =-0.0000000000067919258*BT23^4 + 0.0000000945983196*BT23^3 - 0.000504025587*BT23^2 + 1.22127801*BT23-400.5 -> 721.5687252 | BV23: =$B$7+TAN(RADIANS($B$8))*(BT23-$B$6) -> 1197.387204 | BW23: TRUE | BX23: 4 | BY23: 4551 | BZ23: =-0.0000000000067919258*BY23^4 + 0.0000000945983196*BY23^3 - 0.000504025587*BY23^2 + 1.22127801*BY23-400.5-200 -> 521.5194799 | CA23: =$B$7+TAN(RADIANS($B$8))*(BY23-$B$6)+$B$10 -> 1297.439612 | CB23: TRUE | CC23: 0 | DM23: 6993.169652 | DN23: 4.415978765e-07 | DO23: 758.4640571 | DP23: TRUE | DQ23: 0
A24: BREAK | B24: 0 | C24: =-0.0000000000067919258*B24^4 + 0.0000000945983196*B24^3 - 0.000504025587*B24^2 + 1.22127801*B24 -> 0 | D24: =0.0000182672053*B24^2 - 0.165450041*B24 + 1022.13715 -> 1022.13715 | E24: TRUE | F24: 0 | DM24: 6993.169652 | DN24: 4.415978765e-07 | DO24: =0.0000182672053*DM24^2 - 0.165450041*DM24 + 1022.13715 -> 758.4640571 | DP24: TRUE | DQ24: 0
A25: Coach House Side | B25: 0 | C25: 0 | D25: 1022.13715 | E25: TRUE | F25: 0 | G25: 544.488 | H25: 0 | I25: =0.0000182672053*G25^2 - 0.165450041*G25 + 1022.13715+$B$9 -> 987.467215 | J25: TRUE | K25: 0 | L25: 1000 | M25: 0 | N25: =0.0000182672053*L25^2 - 0.165450041*L25 + 1022.13715+$B$9 -> 924.9543143 | O25: FALSE | P25: 0 | Q25: 1500 | R25: 0 | S25: =0.0000182672053*Q25^2 - 0.165450041*Q25 + 1022.13715+$B$9 -> 865.0633004 | T25: FALSE | U25: 0 | V25: 2000 | W25: 0 | X25: =0.0000182672053*V25^2 - 0.165450041*V25 + 1022.13715+$B$9 -> 814.3058892 | Y25: FALSE | Z25: 0 | AA25: 2625 | AB25: 0 | AC25: =0.0000182672053*AA25^2 - 0.165450041*AA25 + 1022.13715+$B$9 -> 763.7032539 | AD25: TRUE | AE25: 0 | AF25: 2626 | AG25: =-0.0000000000067919258*AF25^4 + 0.0000000945983196*AF25^3 - 0.000504025587*AF25^2 + 1.22127801*AF25-400-200 -> 521.4412672 | AH25: =0.0000182672053*AF25^2 - 0.165450041*AF25 + 1022.13715+$B$9 -> 763.6337249 | AI25: TRUE | AJ25: 0 | AK25: 2652 | AL25: =-0.0000000000067919258*AK25^4 + 0.0000000945983196*AK25^3 - 0.000504025587*AK25^2 + 1.22127801*AK25-400-100 -> 622.433507 | AM25: =0.0000182672053*AK25^2 - 0.165450041*AK25 + 1022.13715+$B$9 -> 761.8387959 | AN25: TRUE | AO25: 0 | AP25: 2725 | AQ25: =-0.0000000000067919258*AP25^4 + 0.0000000945983196*AP25^3 - 0.000504025587*AP25^2 + 1.22127801*AP25-400-27 -> 697.9521613 | AR25: =0.0000182672053*AP25^2 - 0.165450041*AP25 + 1022.13715+$B$9 -> 756.9312046 | AS25: TRUE | AT25: 0 | AU25: 2824 | AV25: =-0.0000000000067919258*AU25^4 + 0.0000000945983196*AU25^3 - 0.000504025587*AU25^2 + 1.22127801*AU25-400.5 -> 727.3091982 | AW25: =0.0000182672053*AU25^2 - 0.165450041*AU25 + 1022.13715+$B$9 -> 750.5867581 | AX25: TRUE | AY25: 5 | AZ25: 2825 | BA25: =-0.0000000000067919258*AZ25^4 + 0.0000000945983196*AZ25^3 - 0.000504025587*AZ25^2 + 1.22127801*AZ25-400.5 -> 727.3351172 | BB25: =$B$7+TAN(RADIANS($B$8))*(AZ25-$B$6) -> 1106.983785 | BC25: TRUE | BD25: 5 | BE25: 3000 | BF25: =-0.0000000000067919258*BE25^4 + 0.0000000945983196*BE25^3 - 0.000504025587*BE25^2 + 1.22127801*BE25-400.5 -> 731.1123864 | BG25: =$B$7+TAN(RADIANS($B$8))*(BE25-$B$6) -> 1116.155146 | BH25: FALSE | BI25: 5 | BJ25: 3500 | BK25: =-0.0000000000067919258*BJ25^4 + 0.0000000945983196*BJ25^3 - 0.000504025587*BJ25^2 + 1.22127801*BJ25-400.5 -> 736.3491817 | BL25: =$B$7+TAN(RADIANS($B$8))*(BJ25-$B$6) -> 1142.359036 | BM25: FALSE | BN25: 5 | BO25: 4000 | BP25: =-0.0000000000067919258*BO25^4 + 0.0000000945983196*BO25^3 - 0.000504025587*BO25^2 + 1.22127801*BO25-400.5 -> 735.7620976 | BQ25: =$B$7+TAN(RADIANS($B$8))*(BO25-$B$6) -> 1168.562925 | BR25: FALSE | BS25: 5 | BT25: 4550 | BU25: =-0.0000000000067919258*BT25^4 + 0.0000000945983196*BT25^3 - 0.000504025587*BT25^2 + 1.22127801*BT25-400.5 -> 721.5687252 | BV25: =$B$7+TAN(RADIANS($B$8))*(BT25-$B$6) -> 1197.387204 | BW25: TRUE | BX25: 5 | BY25: 4551 | BZ25: =-0.0000000000067919258*BY25^4 + 0.0000000945983196*BY25^3 - 0.000504025587*BY25^2 + 1.22127801*BY25-400.5 -> 721.5194799 | CA25: =0.0000182672053*BY25^2 - 0.165450041*BY25 + 1022.13715+$B$9 -> 697.517081 | CB25: TRUE | CC25: 0 | CI25: 4800 | CJ25: 310 | CK25: =0.0000182672053*CI25^2 - 0.165450041*CI25 + 1022.13715+$B$9 -> 698.8533633 | CL25: FALSE | CM25: 5 | CN25: 4801 | CO25: 310 | CP25: =0.0000182672053*CN25^2 - 0.165450041*CN25 + 1022.13715+$B$9-$B$11 -> 418.8632967 | CQ25: FALSE | CR25: 5 | CS25: 5500 | CT25: =(CY25-CO25)/(CX25-CN25)*(CS25-CN25)+CO25 -> 221.7116725 | CU25: =0.0000182672053*CS25^2 - 0.165450041*CS25 + 1022.13715+$B$9-$B$11 -> 434.7448848 | CV25: FALSE | CW25: 5 | CX25: 5949 | CY25: 165 | CZ25: =0.0000182672053*CX25^2 - 0.165450041*CX25 + 1022.13715+$B$9-$B$11 -> 454.3622302 | DA25: FALSE | DB25: 5 | DC25: 5950 | DD25: 165 | DE25: =0.0000182672053*DC25^2 - 0.165450041*DC25 + 1022.13715+$B$9 -> 734.4141417 | DF25: TRUE | DG25: 0 | DM25: 6993.169652 | DN25: =-0.0000000000067919258*DM25^4 + 0.0000000945983196*DM25^3 - 0.000504025587*DM25^2 + 1.22127801*DM25 -> 4.415978765e-07 | DO25: 758.4640571 | DP25: TRUE | DQ25: 0
A26: Coach House Bottom | B26: 0 | C26: =-0.0000000000067919258*B26^4 + 0.0000000945983196*B26^3 - 0.000504025587*B26^2 + 1.22127801*B26 -> 0 | D26: =0.0000182672053*B26^2 - 0.165450041*B26 + 1022.13715 -> 1022.13715 | E26: TRUE | F26: 6 | G26: 544.488 | H26: 0 | I26: =0.0000182672053*G26^2 - 0.165450041*G26 + 1022.13715+$B$9 -> 987.467215 | J26: TRUE | K26: 6 | L26: 1000 | M26: 0 | N26: =0.0000182672053*L26^2 - 0.165450041*L26 + 1022.13715+$B$9 -> 924.9543143 | O26: FALSE | P26: 6 | Q26: 1500 | R26: 0 | S26: =0.0000182672053*Q26^2 - 0.165450041*Q26 + 1022.13715+$B$9 -> 865.0633004 | T26: FALSE | U26: 6 | V26: 2000 | W26: 0 | X26: =0.0000182672053*V26^2 - 0.165450041*V26 + 1022.13715+$B$9 -> 814.3058892 | Y26: FALSE | Z26: 6 | AA26: 2625 | AB26: 0 | AC26: =0.0000182672053*AA26^2 - 0.165450041*AA26 + 1022.13715+$B$9 -> 763.7032539 | AD26: TRUE | AE26: 6 | AF26: 2626 | AG26: =-0.0000000000067919258*AF26^4 + 0.0000000945983196*AF26^3 - 0.000504025587*AF26^2 + 1.22127801*AF26-400-200 -> 521.4412672 | AH26: =0.0000182672053*AF26^2 - 0.165450041*AF26 + 1022.13715+$B$9 -> 763.6337249 | AI26: TRUE | AJ26: 6 | AK26: 2652 | AL26: =-0.0000000000067919258*AK26^4 + 0.0000000945983196*AK26^3 - 0.000504025587*AK26^2 + 1.22127801*AK26-400-100 -> 622.433507 | AM26: =0.0000182672053*AK26^2 - 0.165450041*AK26 + 1022.13715+$B$9 -> 761.8387959 | AN26: TRUE | AO26: 6 | AP26: 2725 | AQ26: =-0.0000000000067919258*AP26^4 + 0.0000000945983196*AP26^3 - 0.000504025587*AP26^2 + 1.22127801*AP26-400-27 -> 697.9521613 | AR26: =0.0000182672053*AP26^2 - 0.165450041*AP26 + 1022.13715+$B$9 -> 756.9312046 | AS26: TRUE | AT26: 6 | AU26: 2824 | AV26: =-0.0000000000067919258*AU26^4 + 0.0000000945983196*AU26^3 - 0.000504025587*AU26^2 + 1.22127801*AU26-400.5 -> 727.3091982 | AW26: =0.0000182672053*AU26^2 - 0.165450041*AU26 + 1022.13715+$B$9 -> 750.5867581 | AX26: TRUE | AY26: 6 | AZ26: 2825 | BA26: =-0.0000000000067919258*AZ26^4 + 0.0000000945983196*AZ26^3 - 0.000504025587*AZ26^2 + 1.22127801*AZ26-400.5 -> 727.3351172 | BB26: =0.0000182672053*AZ26^2 - 0.165450041*AZ26 + 1022.13715+$B$9 -> 750.5244995 | BC26: TRUE | BD26: 6 | BE26: 3000 | BF26: =-0.0000000000067919258*BE26^4 + 0.0000000945983196*BE26^3 - 0.000504025587*BE26^2 + 1.22127801*BE26-400.5 -> 731.1123864 | BG26: =0.0000182672053*BE26^2 - 0.165450041*BE26 + 1022.13715+$B$9 -> 740.1918747 | BH26: FALSE | BI26: 6 | BJ26: 3500 | BK26: =-0.0000000000067919258*BJ26^4 + 0.0000000945983196*BJ26^3 - 0.000504025587*BJ26^2 + 1.22127801*BJ26-400.5 -> 736.3491817 | BL26: =0.0000182672053*BJ26^2 - 0.165450041*BJ26 + 1022.13715+$B$9 -> 716.8352714 | BM26: FALSE | BN26: 6 | BO26: 4000 | BP26: =-0.0000000000067919258*BO26^4 + 0.0000000945983196*BO26^3 - 0.000504025587*BO26^2 + 1.22127801*BO26-400.5 -> 735.7620976 | BQ26: =0.0000182672053*BO26^2 - 0.165450041*BO26 + 1022.13715+$B$9 -> 702.6122708 | BR26: FALSE | BS26: 6 | BT26: 4550 | BU26: =-0.0000000000067919258*BT26^4 + 0.0000000945983196*BT26^3 - 0.000504025587*BT26^2 + 1.22127801*BT26-400.5 -> 721.5687252 | BV26: =0.0000182672053*BT26^2 - 0.165450041*BT26 + 1022.13715+$B$9 -> 697.5162812 | BW26: TRUE | BX26: 6 | BY26: 4551 | BZ26: =-0.0000000000067919258*BY26^4 + 0.0000000945983196*BY26^3 - 0.000504025587*BY26^2 + 1.22127801*BY26-400.5 -> 721.5194799 | CA26: =0.0000182672053*BY26^2 - 0.165450041*BY26 + 1022.13715+$B$9 -> 697.517081 | CB26: TRUE | CC26: 6 | CD26: 4552 | CE26: 0 | CF26: =0.0000182672053*CD26^2 - 0.165450041*CD26 + 1022.13715+$B$9 -> 697.5179173 | CG26: TRUE | CH26: 6 | CI26: 4799 | CJ26: 0 | CK26: =0.0000182672053*CI26^2 - 0.165450041*CI26 + 1022.13715+$B$9 -> 698.8434664 | CL26: FALSE | CM26: 6 | CN26: 4800 | CO26: 310 | CP26: =0.0000182672053*CN26^2 - 0.165450041*CN26 + 1022.13715+$B$9 -> 698.8533633 | CQ26: FALSE | CR26: 6 | CS26: 5500 | CT26: =(CY26-CO26)/(CX26-CN26)*(CS26-CN26)+CO26 -> 221.7391304 | CU26: =0.0000182672053*CS26^2 - 0.165450041*CS26 + 1022.13715+$B$9 -> 714.7448848 | CV26: FALSE | CW26: 6 | CX26: 5950 | CY26: 165 | CZ26: =0.0000182672053*CX26^2 - 0.165450041*CX26 + 1022.13715+$B$9 -> 734.4141417 | DA26: FALSE | DB26: 6 | DC26: 5951 | DD26: 0 | DE26: =0.0000182672053*DC26^2 - 0.165450041*DC26 + 1022.13715+$B$9 -> 734.4660897 | DF26: TRUE | DG26: 6 | DH26: 6454.167 | DI26: 0 | DJ26: =0.0000182672053*DH26^2 - 0.165450041*DH26 + 1022.13715+$B$9 -> 765.2386217 | DK26: TRUE | DL26: 6 | DM26: 6993.169652 | DN26: 4.415978765e-07 | DO26: =0.0000182672053*DM26^2 - 0.165450041*DM26 + 1022.13715 -> 758.4640571 | DP26: TRUE | DQ26: 0
A27: Deck | B27: 0 | C27: =-0.0000000000067919258*B27^4 + 0.0000000945983196*B27^3 - 0.000504025587*B27^2 + 1.22127801*B27 -> 0 | D27: =0.0000182672053*B27^2 - 0.165450041*B27 + 1022.13715 -> 1022.13715 | E27: TRUE | F27: 1 | G27: 544.488 | H27: 0 | I27: =0.0000182672053*G27^2 - 0.165450041*G27 + 1022.13715+$B$9 -> 987.467215 | J27: TRUE | K27: 1 | L27: 1000 | M27: =H27+352.82 -> 352.82 | N27: =0.0000182672053*L27^2 - 0.165450041*L27 + 1022.13715+$B$9 -> 924.9543143 | O27: FALSE | P27: 1 | Q27: 1500 | R27: =M27+205.418 -> 558.238 | S27: =0.0000182672053*Q27^2 - 0.165450041*Q27 + 1022.13715+$B$9 -> 865.0633004 | T27: FALSE | U27: 1 | V27: 2000 | W27: =R27+109.642 -> 667.88 | X27: =0.0000182672053*V27^2 - 0.165450041*V27 + 1022.13715+$B$9 -> 814.3058892 | Y27: FALSE | Z27: 1 | AA27: 2625 | AB27: =-0.0000000000067919258*AA27^4 + 0.0000000945983196*AA27^3 - 0.000504025587*AA27^2 + 1.22127801*AA27-400 -> 721.4020452 | AC27: =0.0000182672053*AA27^2 - 0.165450041*AA27 + 1022.13715+$B$9 -> 763.7032539 | AD27: TRUE | AE27: 1 | AU27: 2824 | AV27: =-0.0000000000067919258*AU27^4 + 0.0000000945983196*AU27^3 - 0.000504025587*AU27^2 + 1.22127801*AU27-400 -> 727.8091982 | AW27: =0.0000182672053*AU27^2 - 0.165450041*AU27 + 1022.13715+$B$9 -> 750.5867581 | AX27: TRUE | AY27: 1 | AZ27: 2825 | BA27: =-0.0000000000067919258*AZ27^4 + 0.0000000945983196*AZ27^3 - 0.000504025587*AZ27^2 + 1.22127801*AZ27-400 -> 727.8351172 | BB27: =0.0000182672053*AZ27^2 - 0.165450041*AZ27 + 1022.13715+$B$9 -> 750.5244995 | BC27: TRUE | BD27: 1 | BE27: 3000 | BF27: =-0.0000000000067919258*BE27^4 + 0.0000000945983196*BE27^3 - 0.000504025587*BE27^2 + 1.22127801*BE27-400 -> 731.6123864 | BG27: =0.0000182672053*BE27^2 - 0.165450041*BE27 + 1022.13715+$B$9 -> 740.1918747 | BH27: FALSE | BI27: 1 | BJ27: 3500 | BK27: =-0.0000000000067919258*BJ27^4 + 0.0000000945983196*BJ27^3 - 0.000504025587*BJ27^2 + 1.22127801*BJ27-400 -> 736.8491817 | BL27: =0.0000182672053*BJ27^2 - 0.165450041*BJ27 + 1022.13715+$B$9 -> 716.8352714 | BM27: FALSE | BN27: 1 | BO27: 4000 | BP27: =-0.0000000000067919258*BO27^4 + 0.0000000945983196*BO27^3 - 0.000504025587*BO27^2 + 1.22127801*BO27-400 -> 736.2620976 | BQ27: =0.0000182672053*BO27^2 - 0.165450041*BO27 + 1022.13715+$B$9 -> 702.6122708 | BR27: FALSE | BS27: 1 | BT27: 4550 | BU27: =-0.0000000000067919258*BT27^4 + 0.0000000945983196*BT27^3 - 0.000504025587*BT27^2 + 1.22127801*BT27-400 -> 722.0687252 | BV27: =0.0000182672053*BT27^2 - 0.165450041*BT27 + 1022.13715+$B$9 -> 697.5162812 | BW27: TRUE | BX27: 1 | CI27: 5000 | CJ27: =BU27-52.178 -> 669.8907252 | CK27: =0.0000182672053*CI27^2 - 0.165450041*CI27 + 1022.13715+$B$9 -> 701.5670775 | CL27: FALSE | CM27: 1 | CN27: 5500 | CO27: =CJ27-135.97 -> 533.9207252 | CP27: =0.0000182672053*CN27^2 - 0.165450041*CN27 + 1022.13715+$B$9 -> 714.7448848 | CQ27: FALSE | CR27: 1 | CX27: 6000 | CY27: =CO27-175.718 -> 358.2027252 | CZ27: =0.0000182672053*CX27^2 - 0.165450041*CX27 + 1022.13715+$B$9 -> 737.0562948 | DA27: FALSE | DB27: 1 | DC27: 6454.167 | DD27: 0 | DE27: =0.0000182672053*DC27^2 - 0.165450041*DC27 + 1022.13715+$B$9 -> 765.2386217 | DF27: TRUE | DG27: 1 | DH27: 6454.167 | DI27: 0 | DJ27: =0.0000182672053*DH27^2 - 0.165450041*DH27 + 1022.13715+$B$9 -> 765.2386217 | DK27: TRUE | DL27: 1 | DM27: 6993.169652 | DN27: 4.415978765e-07 | DO27: 758.4640571 | DP27: TRUE | DQ27: 0
A28: Sheer | B28: 0 | C28: =-0.0000000000067919258*B28^4 + 0.0000000945983196*B28^3 - 0.000504025587*B28^2 + 1.22127801*B28 -> 0 | D28: =0.0000182672053*B28^2 - 0.165450041*B28 + 1022.13715 -> 1022.13715 | E28: TRUE | F28: 2 | G28: 200 | H28: =-0.0000000000067919258*G28^4 + 0.0000000945983196*G28^3 - 0.000504025587*G28^2 + 1.22127801*G28 -> 224.840498 | I28: =0.0000182672053*G28^2 - 0.165450041*G28 + 1022.13715 -> 989.77783 | J28: FALSE | K28: 2 | L28: 400 | M28: =-0.0000000000067919258*L28^4 + 0.0000000945983196*L28^3 - 0.000504025587*L28^2 + 1.22127801*L28 -> 413.7475292 | N28: =0.0000182672053*L28^2 - 0.165450041*L28 + 1022.13715 -> 958.8798864 | O28: FALSE | P28: 2 | Q28: 600 | R28: =-0.0000000000067919258*Q28^4 + 0.0000000945983196*Q28^3 - 0.000504025587*Q28^2 + 1.22127801*Q28 -> 570.8705981 | S28: =0.0000182672053*Q28^2 - 0.165450041*Q28 + 1022.13715 -> 929.4433193 | T28: FALSE | U28: 2 | AA28: 800 | AB28: =-0.0000000000067919258*AA28^4 + 0.0000000945983196*AA28^3 - 0.000504025587*AA28^2 + 1.22127801*AA28 -> 700.0983991 | AC28: =0.0000182672053*AA28^2 - 0.165450041*AA28 + 1022.13715 -> 901.4681286 | AD28: FALSE | AE28: 2 | AF28: 1000 | AG28: =-0.0000000000067919258*AF28^4 + 0.0000000945983196*AF28^3 - 0.000504025587*AF28^2 + 1.22127801*AF28 -> 805.0588168 | AH28: =0.0000182672053*AF28^2 - 0.165450041*AF28 + 1022.13715 -> 874.9543143 | AI28: FALSE | AJ28: 2 | AK28: 1500 | AL28: =-0.0000000000067919258*AK28^4 + 0.0000000945983196*AK28^3 - 0.000504025587*AK28^2 + 1.22127801*AK28 -> 982.7446485 | AM28: =0.0000182672053*AK28^2 - 0.165450041*AK28 + 1022.13715 -> 815.0633004 | AN28: FALSE | AO28: 2 | AP28: 2000 | AQ28: =-0.0000000000067919258*AP28^4 + 0.0000000945983196*AP28^3 - 0.000504025587*AP28^2 + 1.22127801*AP28 -> 1074.569416 | AR28: =0.0000182672053*AP28^2 - 0.165450041*AP28 + 1022.13715 -> 764.3058892 | AS28: FALSE | AT28: 2 | AU28: 2625 | AV28: =-0.0000000000067919258*AU28^4 + 0.0000000945983196*AU28^3 - 0.000504025587*AU28^2 + 1.22127801*AU28 -> 1121.402045 | AW28: =0.0000182672053*AU28^2 - 0.165450041*AU28 + 1022.13715 -> 713.7032539 | AX28: FALSE | AY28: 2 | BE28: 3000 | BF28: =-0.0000000000067919258*BE28^4 + 0.0000000945983196*BE28^3 - 0.000504025587*BE28^2 + 1.22127801*BE28 -> 1131.612386 | BG28: =0.0000182672053*BE28^2 - 0.165450041*BE28 + 1022.13715 -> 690.1918747 | BH28: FALSE | BI28: 2 | BJ28: 3500 | BK28: =-0.0000000000067919258*BJ28^4 + 0.0000000945983196*BJ28^3 - 0.000504025587*BJ28^2 + 1.22127801*BJ28 -> 1136.849182 | BL28: =0.0000182672053*BJ28^2 - 0.165450041*BJ28 + 1022.13715 -> 666.8352714 | BM28: FALSE | BN28: 2 | BO28: 4000 | BP28: =-0.0000000000067919258*BO28^4 + 0.0000000945983196*BO28^3 - 0.000504025587*BO28^2 + 1.22127801*BO28 -> 1136.262098 | BQ28: =0.0000182672053*BO28^2 - 0.165450041*BO28 + 1022.13715 -> 652.6122708 | BR28: FALSE | BS28: 2 | BT28: 4550 | BU28: =-0.0000000000067919258*BT28^4 + 0.0000000945983196*BT28^3 - 0.000504025587*BT28^2 + 1.22127801*BT28 -> 1122.068725 | BV28: =0.0000182672053*BT28^2 - 0.165450041*BT28 + 1022.13715 -> 647.5162812 | BW28: FALSE | BX28: 2 | BY28: 5000 | BZ28: =-0.0000000000067919258*BY28^4 + 0.0000000945983196*BY28^3 - 0.000504025587*BY28^2 + 1.22127801*BY28 -> 1085.5867 | CA28: =0.0000182672053*BY28^2 - 0.165450041*BY28 + 1022.13715 -> 651.5670775 | CB28: FALSE | CC28: 2 | CD28: 6000 | CE28: =-0.0000000000067919258*CD28^4 + 0.0000000945983196*CD28^3 - 0.000504025587*CD28^2 + 1.22127801*CD28 -> 813.6481248 | CF28: =0.0000182672053*CD28^2 - 0.165450041*CD28 + 1022.13715 -> 687.0562948 | CG28: FALSE | CH28: 2 | CI28: 6200 | CJ28: =-0.0000000000067919258*CI28^4 + 0.0000000945983196*CI28^3 - 0.000504025587*CI28^2 + 1.22127801*CI28 -> 706.6306406 | CK28: =0.0000182672053*CI28^2 - 0.165450041*CI28 + 1022.13715 -> 698.5382675 | CL28: FALSE | CM28: 2 | CN28: 6400 | CO28: =-0.0000000000067919258*CN28^4 + 0.0000000945983196*CN28^3 - 0.000504025587*CN28^2 + 1.22127801*CN28 -> 574.7124934 | CP28: =0.0000182672053*CN28^2 - 0.165450041*CN28 + 1022.13715 -> 711.4816167 | CQ28: FALSE | CR28: 2 | CX28: 6600 | CY28: =-0.0000000000067919258*CX28^4 + 0.0000000945983196*CX28^3 - 0.000504025587*CX28^2 + 1.22127801*CX28 -> 414.2188893 | CZ28: =0.0000182672053*CX28^2 - 0.165450041*CX28 + 1022.13715 -> 725.8863423 | DA28: FALSE | DB28: 2 | DC28: 6800 | DD28: =-0.0000000000067919258*DC28^4 + 0.0000000945983196*DC28^3 - 0.000504025587*DC28^2 + 1.22127801*DC28 -> 221.2142242 | DE28: =0.0000182672053*DC28^2 - 0.165450041*DC28 + 1022.13715 -> 741.7524443 | DF28: FALSE | DG28: 2 | DM28: 6993.169652 | DN28: 4.415978765e-07 | DO28: 758.4640571 | DP28: TRUE | DQ28: 0
A29: Chine | B29: =B28 -> 0 | C29: 0 | D29: 1022.13715 | E29: =E28 -> TRUE | F29: 4 | G29: 150.2646132 | H29: =-1.96836918E-12*G29^4 + 0.0000000223263403*G29^3 - 0.00015881897*G29^2 + 0.678982126*G29 - 98.516196 -> -0.0005077732953 | I29: =0.0000325080672*G29^2 - 0.237650785*G29 + 321.043886 -> 286.0673971 | J29: TRUE | K29: 4 | L29: 200 | M29: =-1.96836918E-12*L29^4 + 0.0000000223263403*L29^3 - 0.00015881897*L29^2 + 0.678982126*L29 - 98.516196 -> 31.10293173 | N29: =0.0000325080672*L29^2 - 0.237650785*L29 + 321.043886 -> 274.8140517 | O29: FALSE | P29: 4 | Q29: 400 | R29: =-1.96836918E-12*Q29^4 + 0.0000000223263403*Q29^3 - 0.00015881897*Q29^2 + 0.678982126*Q29 - 98.516196 -> 149.0441147 | S29: =0.0000325080672*Q29^2 - 0.237650785*Q29 + 321.043886 -> 231.1848628 | T29: FALSE | U29: 4 | V29: 600 | W29: =-1.96836918E-12*V29^4 + 0.0000000223263403*V29^3 - 0.00015881897*V29^2 + 0.678982126*V29 - 98.516196 -> 256.2656393 | X29: =0.0000325080672*V29^2 - 0.237650785*V29 + 321.043886 -> 190.1563192 | Y29: FALSE | Z29: 4 | AA29: 800 | AB29: =-1.96836918E-12*AA29^4 + 0.0000000223263403*AA29^3 - 0.00015881897*AA29^2 + 0.678982126*AA29 - 98.516196 -> 353.6502062 | AC29: =0.0000325080672*AA29^2 - 0.237650785*AA29 + 321.043886 -> 151.728421 | AD29: FALSE | AE29: 4 | AF29: 1000 | AG29: =-1.96836918E-12*AF29^4 + 0.0000000223263403*AF29^3 - 0.00015881897*AF29^2 + 0.678982126*AF29 - 98.516196 -> 442.0049311 | AH29: =0.0000325080672*AF29^2 - 0.237650785*AF29 + 321.043886 -> 115.9011682 | AI29: FALSE | AJ29: 4 | AK29: 1500 | AL29: =-1.96836918E-12*AK29^4 + 0.0000000223263403*AK29^3 - 0.00015881897*AK29^2 + 0.678982126*AK29 - 98.516196 -> 628.00084 | AM29: =0.0000325080672*AK29^2 - 0.237650785*AK29 + 321.043886 -> 37.7108597 | AN29: FALSE | AO29: 4 | AP29: 2000 | AQ29: =-1.96836918E-12*AP29^4 + 0.0000000223263403*AP29^3 - 0.00015881897*AP29^2 + 0.678982126*AP29 - 98.516196 -> 771.2889915 | AR29: =0.0000325080672*AP29^2 - 0.237650785*AP29 + 321.043886 -> -24.2254152 | AS29: FALSE | AT29: 4 | AU29: 2625 | AV29: =-1.96836918E-12*AU29^4 + 0.0000000223263403*AU29^3 - 0.00015881897*AU29^2 + 0.678982126*AU29 - 98.516196 -> 899.8267491 | AW29: =0.0000325080672*AU29^2 - 0.237650785*AU29 + 321.043886 -> -78.78852407 | AX29: FALSE | AY29: 4 | BE29: 3000 | BF29: =-1.96836918E-12*BE29^4 + 0.0000000223263403*BE29^3 - 0.00015881897*BE29^2 + 0.678982126*BE29 - 98.516196 -> 952.4327365 | BG29: =0.0000325080672*BE29^2 - 0.237650785*BE29 + 321.043886 -> -99.3358642 | BH29: FALSE | BI29: 4 | BJ29: 3500 | BK29: =-1.96836918E-12*BJ29^4 + 0.0000000223263403*BJ29^3 - 0.00015881897*BJ29^2 + 0.678982126*BJ29 - 98.516196 -> 994.2523028 | BL29: =0.0000325080672*BJ29^2 - 0.237650785*BJ29 + 321.043886 -> -112.5100383 | BM29: FALSE | BN29: 4 | BO29: 4000 | BP29: =-1.96836918E-12*BO29^4 + 0.0000000223263403*BO29^3 - 0.00015881897*BO29^2 + 0.678982126*BO29 - 98.516196 -> 1001.292057 | BQ29: =0.0000325080672*BO29^2 - 0.237650785*BO29 + 321.043886 -> -109.4301788 | BR29: FALSE | BS29: 4 | BT29: 4550 | BU29: =-1.96836918E-12*BT29^4 + 0.0000000223263403*BT29^3 - 0.00015881897*BT29^2 + 0.678982126*BT29 - 98.516196 -> 962.3328257 | BV29: =0.0000325080672*BT29^2 - 0.237650785*BT29 + 321.043886 -> -87.26892454 | BW29: FALSE | BX29: 4 | BY29: 5000 | BZ29: =-1.96836918E-12*BY29^4 + 0.0000000223263403*BY29^3 - 0.00015881897*BY29^2 + 0.678982126*BY29 - 98.516196 -> 886.481984 | CA29: =0.0000325080672*BY29^2 - 0.237650785*BY29 + 321.043886 -> -54.508359 | CB29: FALSE | CC29: 4 | CD29: 6000 | CE29: =-1.96836918E-12*CD29^4 + 0.0000000223263403*CD29^3 - 0.00015881897*CD29^2 + 0.678982126*CD29 - 98.516196 -> 529.3766875 | CF29: =0.0000325080672*CD29^2 - 0.237650785*CD29 + 321.043886 -> 65.4295952 | CG29: FALSE | CH29: 4 | CI29: 6200 | CJ29: =-1.96836918E-12*CI29^4 + 0.0000000223263403*CI29^3 - 0.00015881897*CI29^2 + 0.678982126*CI29 - 98.516196 -> 418.6353718 | CK29: =0.0000325080672*CI29^2 - 0.237650785*CI29 + 321.043886 -> 97.21912217 | CL29: FALSE | CM29: 4 | CN29: 6400 | CO29: =-1.96836918E-12*CN29^4 + 0.0000000223263403*CN29^3 - 0.00015881897*CN29^2 + 0.678982126*CN29 - 98.516196 -> 292.0850607 | CP29: =0.0000325080672*CN29^2 - 0.237650785*CN29 + 321.043886 -> 131.6092945 | CQ29: FALSE | CR29: 4 | CX29: 6600 | CY29: =-1.96836918E-12*CX29^4 + 0.0000000223263403*CX29^3 - 0.00015881897*CX29^2 + 0.678982126*CX29 - 98.516196 -> 148.4164792 | CZ29: =0.0000325080672*CX29^2 - 0.237650785*CX29 + 321.043886 -> 168.6001122 | DA29: FALSE | DB29: 4 | DC29: 6783.921712 | DD29: =-1.96836918E-12*DC29^4 + 0.0000000223263403*DC29^3 - 0.00015881897*DC29^2 + 0.678982126*DC29 - 98.516196 -> 2.261636354e-07 | DE29: =0.0000325080672*DC29^2 - 0.237650785*DC29 + 321.043886 -> 204.9126295 | DF29: TRUE | DG29: 4 | DM29: 6993.169652 | DN29: 4.415978765e-07 | DO29: 758.4640571 | DP29: TRUE | DQ29: 0
A30: Sole Top | B30: 0 | C30: 0 | D30: 1022.13715 | E30: TRUE | F30: 0 | G30: =G29 -> 150.2646132 | H30: =H29 -> -0.0005077732953 | I30: =I29 -> 286.0673971 | J30: =J29 -> TRUE | K30: 5 | L30: 200 | M30: 0 | N30: =I30-168.503 -> 117.5643971 | O30: FALSE | P30: 5 | Q30: 400 | R30: 0 | S30: =N30-325.831 -> -208.2666029 | T30: FALSE | U30: 5 | V30: 600 | W30: 0 | X30: =S30-159.632 -> -367.8986029 | Y30: FALSE | Z30: 5 | AA30: 804 | AB30: =-8.20168948E-16*AA30^5 + 0.0000000000135889885*AA30^4 - 0.0000000840631515*AA30^3 + 0.000206462105*AA30^2 - 0.0717799351*AA30 - 37.5476442 -> -0.08480686388 | AC30: =-0.0536796537*AA30 - 386.148723 -> -429.3071646 | AD30: TRUE | AE30: 5 | AF30: 805 | AG30: =-8.20168948E-16*AF30^5 + 0.0000000000135889885*AF30^4 - 0.0000000840631515*AF30^3 + 0.000206462105*AF30^2 - 0.0717799351*AF30 - 37.5476442 -> 0.03897330584 | AH30: =-0.0536796537*AF30- 309.948723 -> -353.1608442 | AI30: TRUE | AJ30: 5 | AK30: 1500 | AL30: =-8.20168948E-16*AK30^5 + 0.0000000000135889885*AK30^4 - 0.0000000840631515*AK30^3 + 0.000206462105*AK30^2 - 0.0717799351*AK30 - 37.5476442 -> 98.17514942 | AM30: =-0.0536796537*AK30- 309.948723 -> -390.4682035 | AN30: FALSE | AO30: 5 | AP30: 2000 | AQ30: =-8.20168948E-16*AP30^5 + 0.0000000000135889885*AP30^4 - 0.0000000840631515*AP30^3 + 0.000206462105*AP30^2 - 0.0717799351*AP30 - 37.5476442 -> 163.4141033 | AR30: =-0.0536796537*AP30- 309.948723 -> -417.3080304 | AS30: FALSE | AT30: 5 | AU30: 2625 | AV30: =-8.20168948E-16*AU30^5 + 0.0000000000135889885*AU30^4 - 0.0000000840631515*AU30^3 + 0.000206462105*AU30^2 - 0.0717799351*AU30 - 37.5476442 -> 219.1494483 | AW30: =-0.0536796537*AU30- 309.948723 -> -450.857814 | AX30: FALSE | AY30: 5 | BE30: 3000 | BF30: =-8.20168948E-16*BE30^5 + 0.0000000000135889885*BE30^4 - 0.0000000840631515*BE30^3 + 0.000206462105*BE30^2 - 0.0717799351*BE30 - 37.5476442 -> 236.9734191 | BG30: =-0.0536796537*BE30- 309.948723 -> -470.9876841 | BH30: FALSE | BI30: 5 | BJ30: 3500 | BK30: =-8.20168948E-16*BJ30^5 + 0.0000000000135889885*BJ30^4 - 0.0000000840631515*BJ30^3 + 0.000206462105*BJ30^2 - 0.0717799351*BJ30 - 37.5476442 -> 244.6052258 | BL30: =-0.0536796537*BJ30- 309.948723 -> -497.8275109 | BM30: FALSE | BN30: 5 | BO30: 4000 | BP30: =-8.20168948E-16*BO30^5 + 0.0000000000135889885*BO30^4 - 0.0000000840631515*BO30^3 + 0.000206462105*BO30^2 - 0.0717799351*BO30 - 37.5476442 -> 237.6126526 | BQ30: =-0.0536796537*BO30- 309.948723 -> -524.6673378 | BR30: FALSE | BS30: 5 | BT30: 4550 | BU30: =-8.20168948E-16*BT30^5 + 0.0000000000135889885*BT30^4 - 0.0000000840631515*BT30^3 + 0.000206462105*BT30^2 - 0.0717799351*BT30 - 37.5476442 -> 216.4316277 | BV30: =-0.0536796537*BT30- 309.948723 -> -554.1911473 | BW30: FALSE | BX30: 5 | BY30: 5000 | BZ30: =-8.20168948E-16*BY30^5 + 0.0000000000135889885*BY30^4 - 0.0000000840631515*BY30^3 + 0.000206462105*BY30^2 - 0.0717799351*BY30 - 37.5476442 -> 187.3012178 | CA30: =-0.0536796537*BY30- 309.948723 -> -578.3469915 | CB30: FALSE | CC30: 5 | CD30: 6000 | CE30: =-8.20168948E-16*CD30^5 + 0.0000000000135889885*CD30^4 - 0.0000000840631515*CD30^3 + 0.000206462105*CD30^2 - 0.0717799351*CD30 - 37.5476442 -> 40.46315755 | CF30: =-0.0536796537*CD30- 309.948723 -> -632.0266452 | CG30: FALSE | CH30: 5 | CI30: 6150 | CJ30: =-8.20168948E-16*CI30^5 + 0.0000000000135889885*CI30^4 - 0.0000000840631515*CI30^3 + 0.000206462105*CI30^2 - 0.0717799351*CI30 - 37.5476442 -> 0.03053886152 | CK30: =-0.0536796537*CI30- 309.948723 -> -640.0785933 | CL30: TRUE | CM30: 5 | CN30: 6151 | CO30: =-8.20168948E-16*CN30^5 + 0.0000000000135889885*CN30^4 - 0.0000000840631515*CN30^3 + 0.000206462105*CN30^2 - 0.0717799351*CN30 - 37.5476442 -> -0.2631398322 | CP30: =-0.0536796537*CN30 - 386.148723 -> -716.3322729 | CQ30: TRUE | CR30: 5 | CX30: 6434.802 | CY30: 0 | CZ30: -716.2843067 | DA30: TRUE | DB30: 5 | DC30: =DC29 -> 6783.921712 | DD30: =DD29 -> 2.261636354e-07 | DE30: =DE29 -> 204.9126295 | DF30: =DF29 -> TRUE | DG30: 0 | DM30: 6993.169652 | DN30: 4.415978765e-07 | DO30: 758.4640571 | DP30: TRUE | DQ30: 0
A31: Sole Bottom | B31: 0 | C31: 0 | D31: 1022.13715 | E31: TRUE | F31: 0 | AA31: 804 | AB31: =-8.20168948E-16*AA31^5 + 0.0000000000135889885*AA31^4 - 0.0000000840631515*AA31^3 + 0.000206462105*AA31^2 - 0.0717799351*AA31 - 37.5476442 -> -0.08480686388 | AC31: =-0.0536796537*AA31 - 386.148723 -> -429.3071646 | AD31: TRUE | AE31: 6 | AF31: 1000 | AG31: =-8.20168948E-16*AF31^5 + 0.0000000000135889885*AF31^4 - 0.0000000840631515*AF31^3 + 0.000206462105*AF31^2 - 0.0717799351*AF31 - 37.5476442 -> 25.84019375 | AH31: =-0.0536796537*AF31 - 386.148723 -> -439.8283767 | AI31: FALSE | AJ31: 6 | AK31: 1500 | AL31: =-8.20168948E-16*AK31^5 + 0.0000000000135889885*AK31^4 - 0.0000000840631515*AK31^3 + 0.000206462105*AK31^2 - 0.0717799351*AK31 - 37.5476442 -> 98.17514942 | AM31: =-0.0536796537*AK31 - 386.148723 -> -466.6682036 | AN31: FALSE | AO31: 6 | AP31: 2000 | AQ31: =-8.20168948E-16*AP31^5 + 0.0000000000135889885*AP31^4 - 0.0000000840631515*AP31^3 + 0.000206462105*AP31^2 - 0.0717799351*AP31 - 37.5476442 -> 163.4141033 | AR31: =-0.0536796537*AP31 - 386.148723 -> -493.5080304 | AS31: FALSE | AT31: 6 | AU31: 2625 | AV31: =-8.20168948E-16*AU31^5 + 0.0000000000135889885*AU31^4 - 0.0000000840631515*AU31^3 + 0.000206462105*AU31^2 - 0.0717799351*AU31 - 37.5476442 -> 219.1494483 | AW31: =-0.0536796537*AU31 - 386.148723 -> -527.057814 | AX31: FALSE | AY31: 6 | BE31: 3000 | BF31: =-8.20168948E-16*BE31^5 + 0.0000000000135889885*BE31^4 - 0.0000000840631515*BE31^3 + 0.000206462105*BE31^2 - 0.0717799351*BE31 - 37.5476442 -> 236.9734191 | BG31: =-0.0536796537*BE31 - 386.148723 -> -547.1876841 | BH31: FALSE | BI31: 6 | BJ31: 3500 | BK31: =-8.20168948E-16*BJ31^5 + 0.0000000000135889885*BJ31^4 - 0.0000000840631515*BJ31^3 + 0.000206462105*BJ31^2 - 0.0717799351*BJ31 - 37.5476442 -> 244.6052258 | BL31: =-0.0536796537*BJ31 - 386.148723 -> -574.027511 | BM31: FALSE | BN31: 6 | BO31: 4000 | BP31: =-8.20168948E-16*BO31^5 + 0.0000000000135889885*BO31^4 - 0.0000000840631515*BO31^3 + 0.000206462105*BO31^2 - 0.0717799351*BO31 - 37.5476442 -> 237.6126526 | BQ31: =-0.0536796537*BO31 - 386.148723 -> -600.8673378 | BR31: FALSE | BS31: 6 | BT31: 4550 | BU31: =-8.20168948E-16*BT31^5 + 0.0000000000135889885*BT31^4 - 0.0000000840631515*BT31^3 + 0.000206462105*BT31^2 - 0.0717799351*BT31 - 37.5476442 -> 216.4316277 | BV31: =-0.0536796537*BT31 - 386.148723 -> -630.3911473 | BW31: FALSE | BX31: 6 | BY31: 5000 | BZ31: =-8.20168948E-16*BY31^5 + 0.0000000000135889885*BY31^4 - 0.0000000840631515*BY31^3 + 0.000206462105*BY31^2 - 0.0717799351*BY31 - 37.5476442 -> 187.3012178 | CA31: =-0.0536796537*BY31 - 386.148723 -> -654.5469915 | CB31: FALSE | CC31: 6 | CD31: 6000 | CE31: =-8.20168948E-16*CD31^5 + 0.0000000000135889885*CD31^4 - 0.0000000840631515*CD31^3 + 0.000206462105*CD31^2 - 0.0717799351*CD31 - 37.5476442 -> 40.46315755 | CF31: =-0.0536796537*CD31 - 386.148723 -> -708.2266452 | CG31: FALSE | CH31: 6 | CN31: 6151 | CO31: =-8.20168948E-16*CN31^5 + 0.0000000000135889885*CN31^4 - 0.0000000840631515*CN31^3 + 0.000206462105*CN31^2 - 0.0717799351*CN31 - 37.5476442 -> -0.2631398322 | CP31: =-0.0536796537*CN31 - 386.148723 -> -716.3322729 | CQ31: TRUE | CR31: 0 | DM31: 6993.169652 | DN31: 4.415978765e-07 | DO31: 758.4640571 | DP31: TRUE | DQ31: 0
A32: Centre Line | B32: 0 | C32: 0 | D32: 1022.13715 | E32: TRUE | F32: 0 | AA32: 804 | AB32: 0 | AC32: =AC31 -> -429.3071646 | AD32: =AD31 -> TRUE | AE32: 7 | AF32: =AF31 -> 1000 | AG32: 0 | AH32: =AH31 -> -439.8283767 | AI32: =AI31 -> FALSE | AJ32: 7 | AK32: =AK31 -> 1500 | AL32: 0 | AM32: =AM31 -> -466.6682036 | AN32: =AN31 -> FALSE | AO32: 7 | AP32: =AP31 -> 2000 | AQ32: 0 | AR32: =AR31 -> -493.5080304 | AS32: =AS31 -> FALSE | AT32: 7 | AU32: 2625 | AV32: 0 | AW32: =AW31 -> -527.057814 | AX32: =AX31 -> FALSE | AY32: 7 | BE32: =BE31 -> 3000 | BF32: 0 | BG32: =BG31 -> -547.1876841 | BH32: =BH31 -> FALSE | BI32: 7 | BJ32: =BJ31 -> 3500 | BK32: 0 | BL32: =BL31 -> -574.027511 | BM32: =BM31 -> FALSE | BN32: 7 | BO32: =BO31 -> 4000 | BP32: 0 | BQ32: =BQ31 -> -600.8673378 | BR32: =BR31 -> FALSE | BS32: 7 | BT32: 4550 | BU32: 0 | BV32: =BV31 -> -630.3911473 | BW32: =BW31 -> FALSE | BX32: 7 | BY32: =BY31 -> 5000 | BZ32: 0 | CA32: =CA31 -> -654.5469915 | CB32: =CB31 -> FALSE | CC32: 7 | CD32: =CD31 -> 6000 | CE32: 0 | CF32: =CF31 -> -708.2266452 | CG32: TRUE | CH32: 7 | CN32: 6151 | CO32: 0 | CP32: =CP31 -> -716.3322729 | CQ32: =CQ31 -> TRUE | CR32: 0 | DM32: 6993.169652 | DN32: 4.415978765e-07 | DO32: 758.4640571 | DP32: TRUE | DQ32: 0
A34: Max Chine Length | B34: =MAX(C34:DQ34) -> 897.2446077 | D34: =SQRT((C29-C30)^2+(D29-D30)^2) -> 0 | I34: =SQRT((H29-H30)^2+(I29-I30)^2) -> 0 | N34: =SQRT((M29-M30)^2+(N29-N30)^2) -> 160.2961204 | S34: =SQRT((R29-R30)^2+(S29-S30)^2) -> 464.03851 | X34: =SQRT((W29-W30)^2+(X29-X30)^2) -> 614.0825465 | AC34: =SQRT((AB29-AB30)^2+(AC29-AC30)^2) -> 680.2432 | AH34: =SQRT((AG29-AG30)^2+(AH29-AH30)^2) -> 644.4789208 | AM34: =SQRT((AL29-AL30)^2+(AM29-AM30)^2) -> 681.2140432 | AR34: =SQRT((AQ29-AQ30)^2+(AR29-AR30)^2) -> 723.8962786 | AW34: =SQRT((AV29-AV30)^2+(AW29-AW30)^2) -> 775.7300718 | BB34: =SQRT((BA29-BA30)^2+(BB29-BB30)^2) -> 0 | BG34: =SQRT((BF29-BF30)^2+(BG29-BG30)^2) -> 806.2301843 | BL34: =SQRT((BK29-BK30)^2+(BL29-BL30)^2) -> 842.8762037 | BQ34: =SQRT((BP29-BP30)^2+(BQ29-BQ30)^2) -> 869.2687335 | BV34: =SQRT((BU29-BU30)^2+(BV29-BV30)^2) -> 879.9914541 | CA34: =SQRT((BZ29-BZ30)^2+(CA29-CA30)^2) -> 873.647902 | CF34: =SQRT((CE29-CE30)^2+(CF29-CF30)^2) -> 851.7521042 | CK34: =SQRT((CJ29-CJ30)^2+(CK29-CK30)^2) -> 847.843103 | CP34: =SQRT((CO29-CO30)^2+(CP29-CP30)^2) -> 896.9238385 | CU34: =SQRT((CT29-CT30)^2+(CU29-CU30)^2) -> 0 | CZ34: =SQRT((CY29-CY30)^2+(CZ29-CZ30)^2) -> 897.2446077 | DE34: =SQRT((DD29-DD30)^2+(DE29-DE30)^2) -> 0 | DJ34: =SQRT((DI29-DI30)^2+(DJ29-DJ30)^2) -> 0 | DO34: =SQRT((DN29-DN30)^2+(DO29-DO30)^2) -> 0

Sheet Hearts Desire II Basic Calcs (hidden)
B2: Heart's Desire II Basic Metrics
B3: Length Overall (LOA) | C3: ='Hearts Desire II'!L3 -> 6.993169652 | D3: m
B4: Beam Overall (BOA) | C4: ='Hearts Desire II'!L4 -> 2.273698363 | D4: m
B5: Length Water Line (LWL) | C5: ='Hearts Desire II'!L5 -> 6.17842573 | D5: m
B6: Beam Water Line (BWL) | C6: ='Hearts Desire II'!L6 -> 2.029676549 | D6: m
B7: Depth Water Line (DWL) | C7: ='Hearts Desire II'!L8 -> 0.7163322729 | D7: m
B8: Amidships Freeboard | C8: ='Hearts Desire II'!L9 -> 0.6668352714 | D8: m
B9: Forward Freeboard | C9: ='Hearts Desire II'!L10 -> 1.02213715 | D9: m
B10: Rear Freeboard | C10: ='Hearts Desire II'!L11 -> 0.7584640571 | D10: m
B12: Basic Calculations
B13: Mid-Section Area | C13: =C6*C7 -> 1.453922815 | D13: m^2 | E13: Approximate
B14: Water Line Plan Area | C14: =C6*C5*2/3 -> 8.360137207 | D14: m^2 | E14: Approximate
B15: Displacement Volume | C15: =C5*C6*C7*2/3 -> 5.988636087 | D15: m^3 | E15: Approximate
B16: Displacement Weight | C16: =C15*1025 -> 6138.35199 | D16: kg | E16: Approximate
B17: Prismatic Coefficient (cp) | C17: =C15/(C5*C6*C7) -> 0.6666666667 | E17: Approximate
B18: Displacement Length Ratio (DLR) | C18: =C16/(C3/3.048)^3 -> 508.246602 | E18: Approximate
B19: Hull Speed | C19: =1.34*(C5*3.28)^0.5 -> 6.032268103 | D19: kt | E19: Approximate
B20: Design G Force | C20: 3 | D20: g | E20: Sail boat (>2 g)
B21: Design Pressure | C21: =C20*C16*9.81/1000/C14 -> 21.60870026 | D21: kPa | E21: =TEXT(MAX(6.5,13*C7+C5),"#0.0")&"kPa Alternate Design Pressure" -> 15.5kPa Alternate Design Pressure
B23: Skin Design
B24: Design Pressure (P) | C24: =C21 -> 21.60870026 | D24: kPa
B25: Span (L) | C25: 400 | D25: mm | E25: Frame Spacing
B26: Allowable Stress (S) | C26: =Plywood!$C$14*1000 -> 14000 | D26: kPa | E26: F14 Plywood
B27: Plank Thickness (t) | C27: =(C24*C25*C25/C26/2)^0.5 -> 11.11207844 | D27: mm | E27: t^2=P*L^2/2/S, ~fixed sides
B28: Design Plank Thickness (t) | C28: 12 | D28: mm
B29: Modulus of Elasticity (E) | C29: =Plywood!$C$19*1000 -> 11700000 | D29: kPa
B30: Moment of Inertia (I) | C30: =1000*C28^3/12 -> 144000 | D30: mm^4
B31: Deflection (d) | C31: =C24*C25^4/384/C29/C30 -> 0.0008550451196 | D31: mm | E31: d=P*L^4/384EI (2% max)
B32: Deflection Ratio | C32: =C25/C31 -> 467811.5702
B33: Maximum Concentrated Load | C33: =C26*C28*C28/1000000 -> 2.016 | D33: kN | E33: =S*t*t

Sheet Plywood
A1: Plywood Properties
A2: Stress Grade | B2: Bending Mpa | C2: Tension Mpa | D2: Panel Shear Mpa | E2: Compression Mpa | F2: Bearing Mpa | G2: E Mpa | H2: G~E/20 Mpa
A3: F34 | B3: 100 | C3: 60 | D3: =$B3*9%+2.5 -> 11.5 | E3: 75 | F3: 31 | G3: 21500 | H3: 1075
A4: F27 | B4: 80 | C4: 50 | D4: =$B4*9%+2.5 -> 9.7 | E4: 60 | F4: 27 | G4: 18500 | H4: 925
A5: F22 | B5: 65 | C5: 40 | D5: =$B5*9%+2.5 -> 8.35 | E5: 50 | F5: 23 | G5: 16000 | H5: 800
A6: F17 | B6: 50 | C6: 30 | D6: 6.8 | E6: 40 | F6: 20 | G6: 14000 | H6: 700
A7: F14 | B7: 40 | C7: 25 | D7: 6.1 | E7: 30 | F7: 15 | G7: 12000 | H7: 625
A8: F11 | B8: 35 | C8: 20 | D8: 5.3 | E8: 25 | F8: 12 | G8: 10500 | H8: 525
A9: F8 | B9: 25 | C9: 15 | D9: 4.7 | E9: 20 | F9: 9.7 | G9: 9100 | H9: 455
A10: F7 | B10: 20 | C10: 12 | D10: 4.2 | E10: 15 | F10: 7.7 | G10: 7900 | H10: 345
A11: Selected Grade | B11: 40 | C11: =$B11*60% -> 24 | D11: =$B11*9%+2.5 -> 6.1 | E11: =$B11*75% -> 30 | F11: =$B11*37.5% -> 15 | G11: =170*B11+4900 -> 11700 | H11: =G11/20 -> 585
A13: Plywood Strength | B13: US (MPa) | C13: WS (MPa) | E13: Tasmanian Oak | F13: US (MPa) | G13: WS (MPa)
A14: Fbending | B14: =B11 -> 40 | C14: =B14*35% -> 14 | E14: Fbending | F14: 54 | G14: =F14*65% -> 35.1
A15: Ftension | B15: =C11 -> 24 | C15: =B15*46% -> 11.04
A16: Fshear (~15%*Fb) | B16: =D11 -> 6.1 | C16: =B16*34% -> 2.074 | E16: Fshear (~15%*Fb) | F16: =0.15*F14 -> 8.1 | G16: =0.34*F16 -> 2.754
A17: Fcompressions | B17: =E11 -> 30 | C17: =B17*34% -> 10.2
A18: Fbearing | B18: =F11 -> 15 | C18: =B18*29% -> 4.35
A19: E | B19: =G11 -> 11700 | C19: =B19 -> 11700 | E19: E | F19: 18500 | G19: =F19 -> 18500
A20: G (~E/20) | B20: =H11 -> 585 | C20: =B20 -> 585 | E20: G (~E/15) | F20: =F19/15 -> 1233.333333 | G20: =G19/15 -> 1233.333333
A21: Effective Width (=(E/Smax)^0.5) | B21: =(B19/B17)^0.5 -> 19.74841766 | C21: =60%*B21 -> 11.84905059
